bitfinex/quotes_BTCUSD_20240703
["timestamp","ask_amount","ask_price","bid_price","bid_amount"]
[1720004936681,0.332088,60429.0,60428.0,0.52376533]
[1720004937095,0.326088,60429.0,60428.0,0.52376533]
[1720004937531,0.30275,60429.0,60428.0,0.52376533]
[1720004939349,0.26777,60429.0,60428.0,0.52376533]
[1720004940607,0.26777,60429.0,60428.0,0.46498891]
[1720004940798,0.26777,60429.0,60428.0,0.52369378]
[1720004941413,0.26777,60429.0,60427.0,0.05970042]
[1720004941570,1.495728,60428.0,60427.0,0.000924]
[1720004941964,1.618195,60428.0,60427.0,0.05970042]
[1720004942389,1.58177,60428.0,60427.0,0.05970042]
[1720004942794,1.455822,60428.0,60427.0,0.05970042]
[1720004943357,1.423163,60428.0,60427.0,0.000924]
[1720004943961,1.423163,60428.0,60427.0,0.05970042]
[1720004944338,1.429163,60428.0,60427.0,0.05970042]
[1720004944963,1.423163,60428.0,60427.0,0.05970042]
[1720004945225,1.423163,60428.0,60427.0,0.000924]
[1720004945421,1.423163,60428.0,60427.0,0.05970042]
[1720004945571,1.423163,60428.0,60427.0,0.000924]
[1720004945775,1.609325,60428.0,60427.0,0.000924]
[1720004945973,1.76968806,60428.0,60427.0,0.000924]
[1720004946142,1.76468806,60428.0,60427.0,0.000924]
[1720004946342,1.76868806,60428.0,60427.0,0.000924]
[1720004946764,1.77368806,60428.0,60427.0,0.000924]
[1720004947239,1.76968806,60428.0,60427.0,0.000924]
[1720004947382,1.76468806,60428.0,60427.0,0.000924]
[1720004947592,1.76968806,60428.0,60427.0,0.000924]
[1720004947809,1.77568806,60428.0,60427.0,0.000924]
[1720004950686,1.80535519,60428.0,60427.0,0.000924]
[1720004952184,1.8468575,60428.0,60427.0,0.000924]
[1720004952366,1.68649444,60428.0,60427.0,0.000924]
[1720004952564,1.85361316,60428.0,60414.0,0.000924]
[1720004952880,4.88006,60427.0,60416.0,0.05877642]
[1720004953045,4.88006,60427.0,60414.0,0.000924]
[1720004953046,0.12541109,60425.0,60414.0,0.000924]
[1720004953245,5.34262306,60424.0,60414.0,0.000924]
[1720004953522,4.88006,60423.0,60414.0,0.000924]
[1720004953712,0.1,60422.0,60414.0,0.000924]
[1720004953883,4.88006,60421.0,60414.0,0.000924]
[1720004954070,0.1,60420.0,60414.0,0.000924]
[1720004954272,4.88006,60419.0,60414.0,0.000924]
[1720004954519,0.1,60418.0,60414.0,0.000924]
[1720004954659,4.88006,60417.0,60414.0,0.000924]
[1720004954865,0.1,60416.0,60414.0,0.000924]
[1720004955067,4.88006,60415.0,60414.0,0.000924]
[1720004955434,5.14042306,60415.0,60414.0,0.000924]
[1720004955665,4.98006,60415.0,60414.0,0.000924]
[1720004957292,4.98806,60415.0,60414.0,0.000924]
[1720004957465,4.98006,60415.0,60414.0,0.000924]
[1720004957868,4.99406,60415.0,60414.0,0.000924]
[1720004958029,5.00806,60415.0,60414.0,0.000924]
[1720004958235,4.99406,60415.0,60414.0,0.000924]
[1720004958656,4.98006,60415.0,60414.0,0.000924]
[1720004959098,4.99406,60415.0,60414.0,0.000924]
[1720004959640,5.36692306,60415.0,60414.0,0.000924]
[1720004960047,5.52722186,60415.0,60414.0,0.000924]
[1720004961295,5.51322186,60415.0,60414.0,0.000924]
[1720004961511,5.50022186,60415.0,60414.0,0.000924]
[1720004961706,5.50022186,60415.0,60405.0,0.05877642]
[1720004961911,5.03344167,60414.0,60405.0,0.05877642]
[1720004962269,4.88006,60413.0,60405.0,0.05877642]
[1720004962431,0.1,60412.0,60405.0,0.05877642]
[1720004962638,4.88006,60411.0,60403.0,0.05877642]
[1720004962780,4.88006,60411.0,60400.0,0.18377391]
[1720004962781,0.1,60410.0,60405.0,0.05877642]
[1720004962986,4.88006,60409.0,60405.0,0.05877642]
[1720004963190,0.1,60408.0,60405.0,0.05877642]
[1720004963597,4.88006,60407.0,60405.0,0.05877642]
[1720004963802,0.1,60406.0,60405.0,0.05877642]
[1720004964114,2.715556,60406.0,60405.0,0.05877642]
[1720004964517,2.715556,60406.0,60403.0,0.05877642]
[1720004964759,3.051171,60405.0,60401.0,0.05877642]
[1720004964937,0.1,60404.0,60402.0,0.02992845]
[1720004965251,1.509324,60404.0,60403.0,0.17458891]
[1720004965444,1.493639,60404.0,60403.0,0.17458891]
[1720004965716,1.427339,60404.0,60403.0,0.17458891]
[1720004965936,1.021359,60404.0,60403.0,0.23451736]
[1720004966076,1.021359,60404.0,60403.0,0.86059258]
[1720004966077,0.1,60404.0,60403.0,0.86059258]
[1720004966501,0.1,60404.0,60403.0,0.89059258]
[1720004966700,0.04216148,60415.0,60411.0,0.17458891]
[1720004967021,1.867812,60414.0,60413.0,0.17458891]
[1720004967161,0.1,60414.0,60413.0,0.23451736]
[1720004967376,0.1,60414.0,60413.0,0.65901736]
[1720004968429,0.896388,60414.0,60413.0,0.65901736]
[1720004968636,0.854974,60414.0,60413.0,0.65901736]
[1720004969766,0.839983,60414.0,60413.0,0.65901736]
[1720004970144,0.842983,60414.0,60413.0,0.65901736]
[1720004970316,0.839983,60414.0,60413.0,0.65901736]
[1720004970530,0.746382,60414.0,60413.0,0.65901736]
[1720004972567,0.746382,60414.0,60413.0,0.42401736]
[1720004972791,0.746382,60414.0,60413.0,0.36408891]
[1720004972983,0.746382,60414.0,60413.0,0.42401736]
[1720004973783,0.746382,60414.0,60413.0,0.1895]
[1720004973948,0.8210202,60414.0,60411.0,0.05877642]
[1720004974105,1.908615,60413.0,60411.0,0.05877642]
[1720004974309,1.691563,60412.0,60411.0,0.05877642]
[1720004974500,1.714113,60412.0,60411.0,0.05877642]
[1720004974912,1.714113,60412.0,60407.0,0.05877642]
[1720004974913,1.78534115,60412.0,60407.0,0.05877642]
[1720004975108,2.620385,60411.0,60410.0,0.05877642]
[1720004975313,2.301678,60411.0,60410.0,0.05877642]
[1720004975556,2.30675185,60411.0,60410.0,0.05877642]
[1720004976275,0.10519337,60411.0,60410.0,0.05877642]
[1720004976476,2.60676137,60411.0,60410.0,0.05877642]
[1720004977313,2.60676137,60411.0,60407.0,0.05877642]
[1720004977515,2.30663662,60410.0,60409.0,0.05877642]
[1720004977758,2.27045437,60410.0,60409.0,0.05877642]
[1720004977970,2.27045437,60410.0,60405.0,0.05877642]
[1720004978148,4.018181,60409.0,60402.0,0.29329378]
[1720004978364,0.1,60408.0,60402.0,0.29329378]
[1720004978595,0.16036306,60407.0,60402.0,0.05877642]
[1720004978889,2.20713737,60406.0,60402.0,0.05877642]
[1720004979085,2.417634,60405.0,60402.0,0.05877642]
[1720004979247,0.1,60404.0,60401.0,0.05877642]
[1720004979454,2.266532,60403.0,60401.0,0.05877642]
[1720004979654,0.1,60402.0,60401.0,0.05877642]
[1720004979863,2.181152,60402.0,60401.0,0.23336533]
[1720004980860,1.41142,60402.0,60401.0,0.23336533]
[1720004981514,1.41242,60402.0,60401.0,0.23336533]
[1720004982015,1.41342,60402.0,60401.0,0.05877642]
[1720004982194,1.41342,60402.0,60401.0,0.23336533]
[1720004982395,1.45472774,60402.0,60401.0,0.05877642]
[1720004982598,1.45372774,60402.0,60401.0,0.05877642]
[1720004983125,1.46098786,60402.0,60401.0,0.05877642]
[1720004983485,1.45998786,60402.0,60401.0,0.23336533]
[1720004983689,1.45998786,60402.0,60401.0,0.05877642]
[1720004983886,1.45998786,60402.0,60401.0,0.23336533]
[1720004983887,1.46098786,60402.0,60401.0,0.23336533]
[1720004984229,1.46109745,60402.0,60401.0,0.23336533]
[1720004984790,1.46009745,60402.0,60401.0,0.23336533]
[1720004984992,1.46109745,60402.0,60401.0,0.23336533]
[1720004985199,1.46209745,60402.0,60401.0,0.23336533]
[1720004985397,1.46009745,60402.0,60401.0,0.23336533]
[1720004985807,1.41868012,60402.0,60401.0,0.23336533]
[1720004986008,1.53542146,60402.0,60401.0,0.05877642]
[1720004986331,1.53642146,60402.0,60401.0,0.05877642]
[1720004986648,1.53642146,60402.0,60401.0,0.23336533]
[1720004986856,1.53742146,60402.0,60401.0,0.23336533]
[1720004987007,1.53742146,60402.0,60401.0,0.05877642]
[1720004987426,1.53742146,60402.0,60401.0,0.23336533]
[1720004987634,1.61997202,60402.0,60401.0,0.23428933]
[1720004988231,1.15481202,60402.0,60401.0,0.29421778]
[1720004988673,1.03607068,60402.0,60401.0,0.29421778]
[1720004988975,1.03473672,60402.0,60401.0,0.29421778]
[1720004989376,1.07619829,60402.0,60401.0,0.29421778]
[1720004989602,0.91889829,60402.0,60401.0,0.29421778]
[1720004989808,0.23093829,60402.0,60401.0,0.29421778]
[1720004989982,0.23093829,60402.0,60401.0,0.67421658]
[1720004989983,0.18373677,60402.0,60401.0,0.67421658]
[1720004990206,0.08473677,60402.0,60401.0,0.64421658]
[1720004990332,0.0432752,60402.0,60401.0,0.64421658]
[1720004990526,0.0422752,60402.0,60401.0,0.67421658]
[1720004990727,0.0432752,60402.0,60401.0,0.67421658]
[1720004990948,0.002,60402.0,60401.0,0.67421658]
[1720004991159,0.03982533,60407.0,60406.0,0.23451736]
[1720004991363,0.00084,60414.0,60406.0,0.23451736]
[1720004991569,0.00084,60414.0,60402.0,0.00331062]
[1720004991570,0.03148057,60413.0,60410.0,0.17458891]
[1720004992254,0.03148057,60413.0,60404.0,0.05877642]
[1720004992255,1.545677,60412.0,60407.0,0.17458891]
[1720004992480,0.25779976,60411.0,60407.0,0.17458891]
[1720004992676,1.335171,60410.0,60405.0,0.17458891]
[1720004992842,0.13148057,60409.0,60404.0,0.23336533]
[1720004993203,1.570485,60408.0,60405.0,0.17458891]
[1720004993499,0.1,60407.0,60406.0,0.23451736]
[1720004993920,0.13153458,60407.0,60406.0,0.23451736]
[1720004995271,0.101,60407.0,60406.0,0.23451736]
[1720004995673,0.001,60407.0,60406.0,0.23451736]
[1720004995878,0.002,60407.0,60406.0,0.23851736]
[1720004996197,0.001,60407.0,60406.0,0.23451736]
[1720004996836,0.04271231,60414.0,60406.0,0.23451736]
[1720004997015,3.40990713,60413.0,60407.0,0.17458891]
[1720004997350,3.32087406,60412.0,60407.0,0.17458891]
[1720004997775,2.898211,60411.0,60407.0,0.17458891]
[1720004997949,0.1,60410.0,60407.0,0.17458891]
[1720004998132,2.456656,60409.0,60407.0,0.17458891]
[1720004998339,0.1,60408.0,60407.0,0.17458891]
[1720004998556,2.25242977,60408.0,60407.0,0.17458891]
[1720004998758,2.38365819,60408.0,60407.0,0.17458891]
[1720004999497,2.38365819,60408.0,60407.0,0.17858891]
[1720005000655,2.38465819,60408.0,60407.0,0.17858891]
[1720005000855,2.38465819,60408.0,60407.0,0.17458891]
[1720005001056,2.38365819,60408.0,60407.0,0.17458891]
[1720005001267,2.38365819,60408.0,60405.0,0.05877642]
[1720005001466,2.50508935,60407.0,60405.0,0.05877642]
[1720005001667,2.50508935,60407.0,60405.0,0.05727499]
[1720005001668,2.616799,60406.0,60405.0,0.05727499]
[1720005001890,2.516799,60406.0,60405.0,0.05727499]
[1720005002089,0.10867035,60406.0,60405.0,0.05727499]
[1720005002462,2.62546935,60406.0,60405.0,0.05727499]
[1720005002719,1.88948025,60406.0,60405.0,0.29179235]
[1720005003250,0.7976989,60406.0,60405.0,0.29179235]
[1720005003449,0.7862639,60406.0,60405.0,0.29179235]
[1720005003826,0.1312629,60406.0,60405.0,0.46739235]
[1720005004227,0.1312629,60406.0,60405.0,0.46939235]
[1720005005521,0.1,60406.0,60405.0,0.46939235]
[1720005005738,0.1,60406.0,60405.0,0.49939235]
[1720005005939,0.1,60406.0,60405.0,0.46939235]
[1720005006165,0.1,60406.0,60405.0,0.65969115]
[1720005006295,0.1,60406.0,60405.0,0.89719115]
[1720005006709,0.1,60420.0,60413.0,0.23451736]
[1720005006907,0.07293101,60414.0,60413.0,0.23451736]
[1720005007115,0.07287779,60414.0,60413.0,0.23451736]
[1720005008029,1.36794179,60414.0,60413.0,0.23451736]
[1720005008235,1.22344347,60414.0,60413.0,0.23451736]
[1720005008554,1.42186982,60414.0,60410.0,0.17458891]
[1720005008742,1.799663,60413.0,60410.0,0.17458891]
[1720005008912,0.1,60413.0,60412.0,0.23451736]
[1720005009906,0.231895,60413.0,60412.0,0.23451736]
[1720005010138,0.331895,60413.0,60412.0,0.23451736]
[1720005010336,0.1,60413.0,60412.0,0.23451736]
[1720005010537,0.304006,60413.0,60412.0,0.23451736]
[1720005010995,0.33533749,60413.0,60412.0,0.23451736]
[1720005011188,0.34933749,60413.0,60412.0,0.23451736]
[1720005011603,0.36333749,60413.0,60412.0,0.23451736]
[1720005012156,0.332006,60413.0,60412.0,0.23451736]
[1720005012425,0.318006,60413.0,60412.0,0.23451736]
[1720005012753,0.332006,60413.0,60412.0,0.23451736]
[1720005014740,0.34919919,60413.0,60412.0,0.23451736]
[1720005015096,0.33519919,60413.0,60412.0,0.23451736]
[1720005015304,0.34919919,60413.0,60412.0,0.23551736]
[1720005015463,0.36319919,60413.0,60412.0,0.23551736]
[1720005015669,0.34919919,60413.0,60412.0,0.23451736]
[1720005015870,0.33519919,60413.0,60411.0,0.17458891]
[1720005016240,1.311626,60412.0,60411.0,0.23451736]
[1720005016458,1.311626,60412.0,60409.0,0.05727499]
[1720005016459,1.247834,60412.0,60410.0,0.17458891]
[1720005016595,1.792252,60411.0,60410.0,0.17458891]
[1720005016795,1.65671119,60411.0,60410.0,0.23451736]
[1720005017242,0.80335419,60411.0,60410.0,0.23451736]
[1720005017469,0.80149006,60411.0,60410.0,0.23451736]
[1720005018726,0.81549006,60411.0,60410.0,0.23451736]
[1720005018977,0.88718251,60411.0,60410.0,0.23451736]
[1720005019268,0.91518251,60411.0,60410.0,0.23451736]
[1720005019710,0.90118251,60411.0,60409.0,0.05727499]
[1720005019911,0.24302151,60411.0,60410.0,0.23551736]
[1720005020114,0.15732906,60411.0,60410.0,0.23551736]
[1720005020651,0.15732906,60411.0,60410.0,0.29279235]
[1720005020863,0.15713628,60411.0,60410.0,0.29279235]
[1720005021068,0.05713628,60411.0,60410.0,0.29279235]
[1720005021363,2.26112628,60411.0,60410.0,0.2328639]
[1720005021521,2.26112628,60411.0,60410.0,0.29279235]
[1720005021522,2.39716371,60411.0,60410.0,0.29279235]
[1720005021728,2.38316371,60411.0,60410.0,0.29179235]
[1720005022352,2.39716371,60411.0,60410.0,0.29179235]
[1720005022849,1.92991271,60411.0,60410.0,0.29179235]
[1720005023038,1.92991271,60411.0,60409.0,0.05992845]
[1720005023246,0.26657371,60411.0,60410.0,0.05827499]
[1720005023818,3.75376471,60411.0,60410.0,0.05827499]
[1720005024023,3.72462843,60411.0,60410.0,0.05827499]
[1720005024278,3.75386756,60411.0,60410.0,0.05827499]
[1720005024648,3.7384172,60411.0,60410.0,0.05827499]
[1720005024854,3.62897977,60411.0,60410.0,0.05827499]
[1720005025284,3.64297977,60411.0,60410.0,0.05827499]
[1720005025732,3.64297977,60411.0,60410.0,0.001]
[1720005025938,3.62897977,60411.0,60410.0,0.05727499]
[1720005026245,3.77534283,60411.0,60410.0,0.05727499]
[1720005026468,3.78934283,60411.0,60409.0,0.001]
[1720005026686,3.441509,60410.0,60409.0,0.001]
[1720005026857,3.441509,60410.0,60408.0,0.05727499]
[1720005027182,3.233101,60409.0,60408.0,0.05727499]
[1720005027301,3.26133459,60409.0,60408.0,0.05727499]
[1720005027501,3.36138245,60409.0,60408.0,0.05727499]
[1720005028366,3.48943565,60409.0,60408.0,0.05727499]
[1720005029337,3.48943565,60409.0,60408.0,0.2318639]
[1720005029536,3.48943565,60409.0,60408.0,0.05727499]
[1720005031402,3.37438245,60409.0,60405.0,0.000924]
[1720005031751,2.900606,60408.0,60405.0,0.000924]
[1720005031887,2.598249,60407.0,60405.0,0.000924]
[1720005032093,0.1,60406.0,60405.0,0.000924]
[1720005032314,2.434573,60406.0,60405.0,0.000924]
[1720005032737,2.434573,60406.0,60405.0,0.05819899]
[1720005033074,2.58404368,60406.0,60405.0,0.05819899]
[1720005033246,2.61232513,60406.0,60405.0,0.000924]
[1720005033449,2.61232513,60406.0,60405.0,0.05819899]
[1720005033655,2.61232223,60406.0,60405.0,0.05819899]
[1720005033834,2.46285155,60406.0,60405.0,0.05819899]
[1720005034032,2.47185155,60406.0,60405.0,0.05819899]
[1720005034353,2.43467355,60406.0,60405.0,0.000924]
[1720005034607,2.31692455,60406.0,60405.0,0.000924]
[1720005035418,2.31692455,60406.0,60405.0,0.001924]
[1720005035628,2.47728761,60406.0,60405.0,0.001924]
[1720005036116,2.47728761,60406.0,60405.0,0.000924]
[1720005036277,2.49128761,60406.0,60405.0,0.001924]
[1720005036679,2.49161345,60406.0,60405.0,0.001924]
[1720005037082,2.46860855,60406.0,60405.0,0.000924]
[1720005037323,2.48260855,60406.0,60405.0,0.000924]
[1720005037500,2.49660855,60406.0,60405.0,0.001924]
[1720005039536,3.19660855,60406.0,60405.0,0.001924]
[1720005039826,3.19654556,60406.0,60405.0,0.001924]
[1720005040035,3.22508206,60406.0,60405.0,0.001924]
[1720005040171,3.19654556,60406.0,60405.0,0.001924]
[1720005040370,3.23583474,60406.0,60405.0,0.001924]
[1720005040754,3.2454082,60406.0,60405.0,0.001924]
[1720005042675,3.79513354,60406.0,60405.0,0.001924]
[1720005042874,3.79513354,60406.0,60401.0,0.000924]
[1720005042875,3.85030589,60406.0,60401.0,0.000924]
[1720005043094,1.0491957,60405.0,60401.0,0.000924]
[1720005043296,0.1,60404.0,60401.0,0.000924]
[1720005043442,4.297595,60403.0,60401.0,0.000924]
[1720005043643,0.1,60402.0,60401.0,0.000924]
[1720005043843,4.278675,60402.0,60401.0,0.000924]
[1720005044068,5.13903806,60402.0,60401.0,0.000924]
[1720005044486,5.0877699,60402.0,60401.0,0.000924]
[1720005044667,4.3463069,60402.0,60401.0,0.000924]
[1720005045083,4.3603069,60402.0,60401.0,0.000924]
[1720005045288,4.3743069,60402.0,60401.0,0.000924]
[1720005046047,4.3100279,60402.0,60401.0,0.000924]
[1720005046314,4.3098066,60402.0,60401.0,0.000924]
[1720005047610,5.0098066,60402.0,60401.0,0.000924]
[1720005048007,5.01939426,60402.0,60401.0,0.000924]
[1720005049260,4.99108172,60402.0,60401.0,0.000924]
[1720005049562,5.01930179,60402.0,60401.0,0.000924]
[1720005049769,4.99108172,60402.0,60401.0,0.000924]
[1720005049973,5.0690865,60402.0,60401.0,0.000924]
[1720005051724,5.0690865,60402.0,60400.0,0.009185]
[1720005051920,5.0690865,60402.0,60395.0,0.009185]
[1720005051921,4.20633796,60401.0,60395.0,0.009185]
[1720005052127,3.175478,60400.0,60395.0,0.009185]
[1720005052334,3.175478,60400.0,60396.0,0.08015582]
[1720005052335,3.18506856,60400.0,60396.0,0.08015582]
[1720005052542,3.72631381,60399.0,60396.0,0.08015582]
[1720005052757,3.170307,60398.0,60396.0,0.08015582]
[1720005052955,0.7,60397.0,60396.0,0.08015582]
[1720005053096,3.653752,60397.0,60396.0,0.08015582]
[1720005053300,2.760684,60397.0,60396.0,0.08015582]
[1720005053500,2.77027456,60397.0,60396.0,0.08015582]
[1720005053797,2.79854741,60397.0,60396.0,0.08015582]
[1720005054025,2.89854741,60397.0,60396.0,0.08015582]
[1720005055679,2.89921332,60397.0,60396.0,0.08015582]
[1720005056757,2.91321332,60397.0,60396.0,0.08115582]
[1720005058430,0.14272501,60395.0,60394.0,0.009185]
[1720005058632,0.14272501,60395.0,60374.0,0.178]
[1720005058633,0.12541109,60387.0,60374.0,0.178]
[1720005058869,5.0403588,60386.0,60373.0,0.009185]
[1720005059078,4.686343,60385.0,60373.0,0.009185]
[1720005059282,4.611093,60384.0,60373.0,0.009185]
[1720005059411,4.6753918,60383.0,60373.0,0.009185]
[1720005059625,4.24574196,60382.0,60373.0,0.009185]
[1720005059814,3.7960718,60381.0,60373.0,0.009185]
[1720005060012,3.58027577,60380.0,60373.0,0.009185]
[1720005060422,2.247147,60379.0,60373.0,0.009185]
[1720005060690,3.01086593,60378.0,60373.0,0.009185]
[1720005060922,2.98653797,60378.0,60373.0,0.009185]
[1720005061139,2.44118697,60378.0,60374.0,0.3]
[1720005061335,0.14016931,60378.0,60377.0,0.99101518]
[1720005061542,0.1,60378.0,60377.0,0.75681345]
[1720005062168,0.436913,60378.0,60377.0,0.75681345]
[1720005062500,0.327783,60378.0,60377.0,0.75681345]
[1720005062708,0.114,60378.0,60377.0,1.00538724]
[1720005063115,0.114,60378.0,60377.0,1.00438724]
[1720005063116,0.1,60378.0,60377.0,1.00438724]
[1720005063536,0.114,60378.0,60377.0,1.00538724]
[1720005063737,0.128,60378.0,60377.0,1.00538724]
[1720005064018,0.114,60378.0,60377.0,1.00538724]
[1720005064167,0.014,60378.0,60377.0,1.00538724]
[1720005064349,0.114,60378.0,60377.0,1.00538724]
[1720005064548,0.119,60378.0,60377.0,1.00538724]
[1720005065098,0.019,60378.0,60377.0,1.00538724]
[1720005065301,0.57427412,60405.0,60402.0,0.35992845]
[1720005065512,0.09333918,60405.0,60403.0,0.3]
[1720005065730,0.09333918,60405.0,60402.0,0.3]
[1720005065731,0.2584373,60404.0,60402.0,0.3]
[1720005065878,0.2584373,60404.0,60402.0,0.35992845]
[1720005065879,0.351019,60403.0,60402.0,0.35992845]
[1720005066280,0.351019,60403.0,60402.0,0.3]
[1720005066710,0.351019,60403.0,60402.0,0.35992845]
[1720005066920,0.2532943,60403.0,60402.0,0.4333413]
[1720005067126,0.13119207,60405.0,60401.0,0.08015582]
[1720005067127,0.13119207,60405.0,60404.0,0.35922845]
[1720005067279,0.15881074,60405.0,60404.0,0.35922845]
[1720005068766,0.13119207,60405.0,60404.0,0.35922845]
[1720005069350,0.13119207,60405.0,60402.0,0.2993]
[1720005069552,0.23119207,60405.0,60404.0,0.2993]
[1720005069753,0.24519207,60405.0,60404.0,0.3003]
[1720005069958,0.25919207,60405.0,60404.0,0.35922845]
[1720005070369,0.25919207,60405.0,60401.0,0.35922845]
[1720005070370,0.28511128,60405.0,60401.0,0.35922845]
[1720005070575,0.27319207,60405.0,60404.0,0.3003]
[1720005070816,0.27319207,60405.0,60404.0,0.36022845]
[1720005070817,0.30073157,60405.0,60404.0,0.36022845]
[1720005071337,0.30073157,60405.0,60404.0,0.75112845]
[1720005071634,0.44100557,60405.0,60404.0,0.75112845]
[1720005071831,0.30073157,60405.0,60404.0,0.75112845]
[1720005072076,0.25919207,60405.0,60404.0,0.75112845]
[1720005073538,0.48242407,60405.0,60404.0,0.75112845]
[1720005073851,0.46842407,60405.0,60404.0,0.75112845]
[1720005074165,0.25919207,60405.0,60404.0,0.75212845]
[1720005074348,0.24519207,60405.0,60404.0,0.75112845]
[1720005074904,0.39402507,60405.0,60404.0,0.75212845]
[1720005075125,0.38002507,60405.0,60404.0,0.75112845]
[1720005075327,0.38002507,60405.0,60404.0,0.75012845]
[1720005075466,0.36602507,60405.0,60404.0,0.75012845]
[1720005075864,0.23119207,60405.0,60404.0,0.75012845]
[1720005076327,0.78856607,60405.0,60404.0,0.75012845]
[1720005076667,1.19146607,60405.0,60404.0,0.3909]
[1720005076819,1.79109707,60405.0,60404.0,0.6902]
[1720005076977,1.80509707,60405.0,60404.0,0.4794]
[1720005077589,1.72575789,60405.0,60404.0,0.4804]
[1720005077789,1.72075789,60405.0,60404.0,0.4804]
[1720005078015,1.70675789,60405.0,60404.0,0.4794]
[1720005078221,1.70675789,60405.0,60404.0,0.002]
[1720005078447,2.08103703,60405.0,60404.0,0.002]
[1720005078644,1.92067397,60405.0,60404.0,0.001]
[1720005078888,1.92069179,60405.0,60404.0,0.001]
[1720005079324,1.93369179,60405.0,60404.0,0.002]
[1720005079636,2.60172679,60405.0,60404.0,0.002]
[1720005079822,2.58772679,60405.0,60404.0,0.001]
[1720005080651,2.14500779,60405.0,60404.0,0.001]
[1720005080855,1.76003779,60405.0,60404.0,0.001]
[1720005080982,1.25108779,60405.0,60400.0,0.35922845]
[1720005081185,1.127286,60404.0,60400.0,0.35922845]
[1720005081420,1.1571159,60403.0,60400.0,0.35922845]
[1720005081620,1.061383,60402.0,60400.0,0.35922845]
[1720005081827,0.961383,60402.0,60400.0,0.35922845]
[1720005082025,0.900703,60401.0,60400.0,0.35922845]
[1720005082246,0.900703,60401.0,60398.0,0.2993]
[1720005082443,1.820757,60400.0,60399.0,0.2993]
[1720005082644,1.920757,60400.0,60398.0,0.2993]
[1720005082862,0.1,60399.0,60398.0,0.2993]
[1720005083062,1.895767,60399.0,60398.0,0.2993]
[1720005083563,1.884048,60399.0,60397.0,0.05727499]
[1720005083715,1.92324,60398.0,60397.0,0.05727499]
[1720005083911,1.829575,60398.0,60397.0,0.05727499]
[1720005084554,1.829575,60398.0,60394.0,0.2993]
[1720005084756,0.1,60398.0,60397.0,0.05727499]
[1720005084958,0.112,60398.0,60397.0,0.05727499]
[1720005085159,1.809354,60397.0,60396.0,0.05727499]
[1720005085362,1.889257,60397.0,60396.0,0.05727499]
[1720005086195,1.889257,60397.0,60392.0,0.35657499]
[1720005086465,1.558999,60396.0,60392.0,0.35657499]
[1720005086789,1.315875,60395.0,60392.0,0.35657499]
[1720005086987,0.1,60394.0,60393.0,0.05727499]
[1720005088107,0.112,60398.0,60393.0,0.05727499]
[1720005088251,1.841228,60397.0,60393.0,0.05727499]
[1720005088457,1.598999,60396.0,60390.0,0.35657499]
[1720005088795,0.007,60394.0,60392.0,0.05727499]
[1720005089002,0.107,60394.0,60392.0,0.05727499]
[1720005089214,0.113,60394.0,60392.0,0.05727499]
[1720005089499,0.106,60394.0,60388.0,0.05727499]
[1720005089710,1.28606327,60393.0,60390.0,0.05727499]
[1720005089850,2.034189,60392.0,60390.0,0.05727499]
[1720005090052,1.894189,60391.0,60386.0,0.22977499]
[1720005090273,0.1,60390.0,60389.0,0.05721898]
[1720005090673,1.836889,60390.0,60389.0,0.05721898]
[1720005090869,1.836889,60390.0,60386.0,0.22971898]
[1720005091095,1.642509,60389.0,60388.0,0.05721898]
[1720005091249,1.742509,60389.0,60388.0,0.05721898]
[1720005091655,1.742509,60389.0,60384.0,0.05721898]
[1720005091858,1.797019,60388.0,60387.0,0.05721898]
[1720005093063,1.797019,60388.0,60387.0,0.35651898]
[1720005093275,1.48681361,60388.0,60387.0,0.35651898]
[1720005093498,1.713459,60388.0,60387.0,0.41644743]
[1720005093700,3.090479,60395.0,60389.0,0.35922845]
[1720005094086,0.02440795,60394.0,60393.0,0.73992845]
[1720005094258,0.72343295,60394.0,60393.0,0.73992845]
[1720005094453,0.65713295,60394.0,60393.0,0.73992845]
[1720005094855,0.319376,60394.0,60393.0,0.73992845]
[1720005095157,0.630788,60396.0,60395.0,0.35922845]
[1720005095356,0.12447353,60396.0,60395.0,0.35922845]
[1720005095543,0.75526153,60396.0,60395.0,0.35922845]
[1720005095740,0.68896153,60396.0,60395.0,0.35922845]
[1720005095921,0.53049053,60396.0,60395.0,0.35922845]
[1720005096758,0.53049053,60396.0,60395.0,0.2993]
[1720005097272,0.50732453,60396.0,60395.0,0.35922845]
[1720005097614,0.52132453,60396.0,60395.0,0.35922845]
[1720005098343,0.482851,60396.0,60395.0,0.35922845]
[1720005098561,0.52144955,60396.0,60395.0,0.35922845]
[1720005100972,0.52144955,60396.0,60392.0,0.2993]
[1720005101171,1.969739,60395.0,60392.0,0.2993]
[1720005101338,1.721519,60394.0,60392.0,0.2993]
[1720005101536,0.1,60393.0,60392.0,0.35922845]
[1720005101773,0.314931,60393.0,60392.0,0.35922845]
[1720005102108,0.399946,60393.0,60392.0,0.35922845]
[1720005103978,0.1,60393.0,60392.0,0.35922845]
[1720005104243,0.347258,60393.0,60392.0,0.35922845]
[1720005104482,0.1,60393.0,60392.0,0.35922845]
[1720005105145,0.79445,60393.0,60392.0,0.35922845]
[1720005105576,0.80845,60393.0,60392.0,0.35922845]
[1720005106186,0.83227386,60393.0,60392.0,0.35922845]
[1720005106589,0.83227386,60393.0,60392.0,0.2993]
[1720005106784,0.83227386,60393.0,60392.0,0.35922845]
[1720005106962,0.83227386,60393.0,60390.0,0.2993]
[1720005107184,0.1,60392.0,60390.0,0.2993]
[1720005108395,0.014,60393.0,60390.0,0.2993]
[1720005108777,0.02360761,60392.0,60391.0,0.35922845]
[1720005109095,0.03760761,60392.0,60391.0,0.35922845]
[1720005109297,0.03760761,60392.0,60390.0,0.2993]
[1720005109496,0.02360761,60392.0,60390.0,0.2993]
[1720005109936,0.13543977,60394.0,60392.0,0.2993]
[1720005110112,1.57788947,60393.0,60392.0,0.2993]
[1720005110313,1.69188947,60393.0,60392.0,0.35922845]
[1720005110792,0.97853847,60393.0,60392.0,0.53972845]
[1720005110991,0.222614,60393.0,60392.0,0.57772845]
[1720005111207,0.24622071,60393.0,60392.0,0.57772845]
[1720005111562,0.236614,60393.0,60392.0,0.57772845]
[1720005111759,0.26063324,60393.0,60392.0,0.57772845]
[1720005111995,0.24663324,60393.0,60392.0,0.57772845]
[1720005114070,0.26063324,60393.0,60392.0,0.57772845]
[1720005114265,0.30742324,60393.0,60392.0,0.57772845]